bitfinex/quotes_ETHUSD_20260217
["timestamp","ask_amount","ask_price","bid_price","bid_amount"]
[1771362518619,0.0011,1998.0,1997.5,1.71943659]
[1771362520128,0.0011,1998.0,1997.6,0.46790099]
[1771362520271,0.0011,1998.0,1997.7,1.71934014]
[1771362522026,0.0011,1998.0,1997.8,0.46790099]
[1771362523097,0.0011,1998.0,1997.9,1.25131387]
[1771362523621,0.0011,1998.0,1997.8,1.25133947]
[1771362526093,0.0011,1998.0,1997.7,1.94339162]
[1771362529598,0.0011,1998.0,1997.7,2.41986909]
[1771362530222,0.0011,1998.0,1997.7,1.94343246]
[1771362530726,0.0011,1998.0,1997.8,0.001]
[1771362536347,0.45590823,1998.0,1997.8,0.001]
[1771362538027,1.70716688,1998.0,1997.8,0.001]
[1771362538826,0.45480823,1997.9,1997.8,0.001]
[1771362539127,0.45480823,1997.9,1997.5,0.001]
[1771362539128,1.70618474,1997.8,1997.5,0.001]
[1771362540432,0.45480823,1997.7,1997.5,0.001]
[1771362540662,0.45480823,1997.7,1997.0,0.48129855]
[1771362541248,1.70631003,1997.6,1997.1,0.002]
[1771362541549,0.45480823,1997.5,1997.0,0.002]
[1771362541956,1.23680823,1997.4,1997.0,0.002]
[1771362542324,0.45480823,1997.3,1997.0,0.002]
[1771362542529,0.45480823,1997.3,1996.7,1.73436337]
[1771362542733,0.782,1997.4,1996.8,0.48329855]
[1771362543355,0.782,1997.4,1997.2,0.001]
[1771362544032,2.03363456,1997.4,1997.2,0.001]
[1771362545443,0.45480823,1997.3,1997.2,0.001]
[1771362546141,0.45480823,1997.3,1997.0,0.001]
[1771362547024,6.10625442,1997.3,1997.0,0.001]
[1771362547233,0.45480823,1997.2,1996.7,0.001]
[1771362547450,0.45480823,1997.0,1996.7,0.003]
[1771362547629,0.784,1997.0,1996.7,0.003]
[1771362549332,1.2519405,1996.9,1996.7,0.003]
[1771362550858,2.03692708,1997.0,1996.7,0.003]
[1771362553131,5.00739104,1997.1,1996.7,0.003]
[1771362553327,0.787,1997.1,1996.7,0.48429855]
[1771362553967,1.70643534,1997.4,1996.8,5.65297181]
[1771362554270,0.787,1997.3,1996.8,6.13427036]
[1771362554859,2.03871992,1997.3,1996.8,1.73329898]
[1771362555053,2.03871992,1997.3,1996.8,1.73429898]
[1771362555442,2.03981992,1997.3,1996.8,1.73429898]
[1771362559063,2.03981992,1997.3,1996.9,0.002]
[1771362559363,0.48252362,1997.2,1996.9,0.002]
[1771362561343,0.48252362,1997.0,1996.7,0.001]
[1771362561540,1.27252362,1996.9,1996.7,0.001]
[1771362561739,1.27252362,1996.9,1996.5,0.001]
[1771362561740,0.48252362,1996.8,1996.5,0.001]
[1771362561967,0.48252362,1996.8,1996.1,0.001]
[1771362562274,0.48252362,1996.8,1996.1,0.49430351]
[1771362563348,1.73458952,1996.7,1996.1,0.001]
[1771362565178,1.73458952,1996.7,1996.1,1.74673803]
[1771362565477,0.791,1996.9,1996.5,0.49330351]
[1771362565703,0.791,1997.0,1996.5,0.49330351]
[1771362566539,1.27352362,1997.0,1996.3,0.49330351]
[1771362566954,0.48252362,1996.9,1996.1,1.74673803]
[1771362567356,1.2520032,1996.8,1996.2,0.001]
[1771362567566,1.2520032,1996.8,1996.2,0.49430351]
[1771362569678,1.2520032,1996.8,1996.2,6.14727532]
[1771362569882,1.2520032,1996.8,1996.2,0.001]
[1771362570874,1.73452682,1996.8,1996.2,0.001]
[1771362572689,1.73452682,1996.8,1996.2,5.65397181]
[1771362578368,1.73452682,1996.8,1996.2,6.14727532]
[1771362579674,1.73452682,1996.8,1996.3,0.001]
[1771362579875,0.0011,1996.7,1996.3,0.001]
[1771362581100,8.52701876,1997.0,1996.6,6.14627532]
[1771362581804,1.25301876,1997.0,1996.7,0.49330351]
[1771362582112,1.25298274,1997.0,1996.7,0.49330351]
[1771362583106,0.0011,1997.0,1996.7,0.49330351]
[1771362583594,1.25298499,1997.0,1996.5,0.49330351]
[1771362583909,0.0011,1997.0,1996.6,0.49330351]
[1771362584303,0.0011,1997.0,1996.6,6.14627532]
[1771362588088,0.0011,1997.1,1996.8,5.65297181]
[1771362588295,0.0011,1997.2,1996.9,0.49172016]
[1771362589883,0.45614664,1997.2,1996.6,6.34997181]
[1771362590082,0.0011,1997.2,1996.6,7.60209133]
[1771362590282,0.0011,1997.3,1997.0,5.65297181]
[1771362590894,0.0011,1997.3,1997.0,6.14469197]
[1771362591684,0.797,1997.5,1997.2,5.65297181]
[1771362592918,0.0011,1997.4,1997.2,5.65297181]
[1771362593120,0.0011,1997.4,1997.1,0.49172016]
[1771362597429,0.0011,1997.4,1996.9,0.46079982]
[1771362600326,0.50107406,1997.4,1996.7,1.16279982]
[1771362600501,0.50107406,1997.4,1996.7,1.71285964]
[1771362600701,0.50107406,1997.4,1996.7,0.46079982]
[1771362601530,1.75166384,1997.3,1996.7,0.46079982]
[1771362601733,0.49997406,1997.2,1996.5,0.46079982]
[1771362601933,0.49997406,1997.2,1996.5,1.71298628]
[1771362602636,0.799,1997.1,1996.5,1.71298628]
[1771362602934,0.799,1997.1,1996.5,0.46079982]
[1771362603106,0.49997406,1997.0,1996.4,6.90520245]
[1771362603515,1.2519405,1996.9,1996.4,6.11377163]
[1771362604107,1.2519405,1996.9,1996.4,7.36601774]
[1771362604607,1.2519405,1996.9,1996.8,0.001]
[1771362605511,5.00762024,1997.0,1996.8,0.001]
[1771362606141,0.799,1997.1,1996.8,5.65397181]
[1771362606442,0.8,1997.2,1996.8,6.11477163]
[1771362607702,2.05176235,1997.2,1996.8,6.11477163]
[1771362608505,2.05176235,1997.2,1996.8,5.65397181]
[1771362609949,2.05176235,1997.2,1996.8,0.001]
[1771362610252,0.8,1997.2,1996.8,6.11381978]
[1771362610553,0.8,1997.2,1996.8,7.36581619]
[1771362610719,2.0517561,1997.2,1996.8,6.11381978]
[1771362610920,1.2517561,1997.2,1996.8,6.11381978]
[1771362611124,2.05382866,1997.3,1996.8,7.36582159]
[1771362611418,2.05382866,1997.3,1996.8,6.11381978]
[1771362611956,0.8021,1997.3,1997.0,5.65201996]
[1771362612253,0.0011,1997.4,1997.1,0.46079982]
[1771362612254,0.8021,1997.4,1997.1,0.46079982]
[1771362613240,0.8021,1997.6,1997.2,6.11281978]
[1771362613543,2.05360677,1997.6,1997.2,6.11281978]
[1771362613931,2.05360677,1997.6,1997.2,0.46079982]
[1771362615356,0.8021,1997.6,1997.2,1.71251131]
[1771362615656,0.8021,1997.6,1997.3,5.65201996]
[1771362616145,7.73142126,1997.8,1997.4,0.48496753]
[1771362616146,7.283,1997.8,1997.4,0.48496753]
[1771362616756,7.283,1997.8,1997.5,5.65201996]
[1771362616921,0.803,1997.9,1997.5,6.13698749]
[1771362617327,0.803,1997.9,1997.6,0.48496753]
[1771362617522,0.0011,1998.0,1997.7,5.65201996]
[1771362617728,0.0011,1998.1,1997.9,5.65201996]
[1771362617950,0.0011,1998.1,1997.8,0.48496753]
[1771362618351,0.804,1998.2,1997.8,0.48496753]
[1771362619364,2.51528388,1998.2,1997.5,6.13698749]
[1771362619550,2.51528388,1998.2,1997.5,6.84498749]
[1771362619746,2.51528388,1998.2,1997.5,6.13698749]
[1771362619942,0.46014517,1998.1,1997.4,1.95958306]
[1771362620265,0.46014517,1998.1,1997.4,2.44455059]
[1771362621261,0.46014517,1998.1,1997.4,1.19296753]
[1771362621966,0.46014517,1998.1,1997.5,5.65201996]
[1771362621967,1.25125125,1998.0,1997.5,5.65201996]
[1771362622538,5.80850677,1998.2,1997.5,5.65201996]
[1771362622539,0.804,1998.2,1997.6,0.48496753]
[1771362622859,2.05517261,1998.2,1997.7,6.13698749]
[1771362623235,1.25117261,1998.2,1997.7,5.65201996]
[1771362623440,0.804,1998.1,1997.7,5.65201996]
[1771362626563,0.804,1998.1,1997.5,6.13698749]
[1771362626564,1.25125125,1998.0,1997.5,6.13698749]
[1771362628647,1.25125125,1998.0,1997.5,7.38854653]
[1771362628970,1.25125125,1998.0,1997.5,6.13698749]
[1771362629364,1.25125125,1998.0,1997.5,6.13798749]
[1771362629535,0.804,1998.1,1997.5,6.90458134]
[1771362629862,0.0011,1998.0,1997.5,6.13798749]
[1771362631549,0.0011,1998.0,1997.5,0.001]
[1771362634975,0.0011,1998.0,1997.7,5.65201996]
[1771362635143,0.0011,1998.0,1997.6,0.48496753]
[1771362637476,0.0011,1998.0,1997.5,0.48596753]
[1771362638681,0.46124517,1998.0,1997.5,0.001]
[1771362639062,0.0011,1998.0,1997.5,0.48596753]
[1771362640259,0.46124517,1998.0,1997.5,0.001]
[1771362641399,1.25131387,1997.9,1997.5,0.001]
[1771362642055,0.46014517,1997.8,1997.5,0.001]
[1771362642667,0.46014517,1997.8,1997.6,0.001]
[1771362643070,0.46014517,1997.7,1997.3,0.001]
[1771362643274,1.71164697,1997.6,1997.3,0.001]
[1771362644290,0.809,1997.5,1997.3,0.001]
[1771362646790,1.25162711,1997.4,1997.3,0.001]
[1771362649168,5.81535354,1997.5,1997.3,0.001]
[1771362651180,5.81535354,1997.5,1997.2,0.001]
[1771362652703,2.06056445,1997.5,1997.2,0.001]
[1771362654802,2.06056445,1997.5,1997.4,0.001]
[1771362655586,2.06166445,1997.5,1997.4,0.001]
[1771362657107,0.8101,1997.5,1997.4,0.001]
[1771362657606,0.0011,1997.5,1997.4,0.001]
[1771362657904,0.8201,1997.5,1997.4,0.001]
[1771362659086,2.07166445,1997.5,1997.4,0.001]
[1771362660403,0.8201,1997.5,1997.4,0.001]
[1771362660612,1.25148389,1997.7,1997.4,6.12562134]
[1771362660910,0.821,1997.7,1997.5,0.47260138]
[1771362661477,0.0011,1998.0,1997.6,6.12462134]
[1771362661712,0.8231,1998.0,1997.7,0.47260138]
[1771362662379,2.07435301,1998.0,1997.7,0.47260138]
[1771362663925,5.00585892,1998.1,1997.8,5.65201996]
[1771362663926,0.0011,1998.1,1997.8,5.65201996]
[1771362664122,0.007286,1998.4,1998.0,0.47260138]
[1771362664329,1.25828687,1998.4,1998.0,0.47260138]
[1771362664528,0.007286,1998.4,1998.0,0.47260138]
[1771362664682,1.25829485,1998.4,1998.0,0.47260138]
[1771362667986,1.25829485,1998.4,1998.0,1.72384492]
[1771362667987,0.007286,1998.4,1998.0,1.72384492]
[1771362668313,0.007286,1998.4,1998.1,0.47260138]
[1771362669521,0.0011,1998.3,1998.1,0.47260138]
[1771362670196,0.0011,1998.6,1998.2,5.65201996]
[1771362670401,0.8241,1998.6,1998.3,0.47260138]
[1771362670704,2.07387961,1998.6,1998.3,0.47260138]
[1771362672316,0.823,1998.6,1998.3,0.47260138]
[1771362672688,0.823,1998.6,1998.0,1.72381742]
[1771362672689,2.07389644,1998.6,1998.0,1.72381742]
[1771362675224,2.07389644,1998.6,1998.1,0.48037106]
[1771362679019,0.823,1998.6,1998.1,1.73151803]
[1771362679225,0.823,1998.6,1998.2,0.48037106]
[1771362679413,7.73068588,1999.0,1998.5,6.123934]
[1771362679794,7.73068588,1999.0,1998.6,0.48037106]
[1771362681628,1.25056662,1999.1,1998.7,0.48037106]
[1771362681829,2.07756662,1999.1,1998.7,0.48037106]
[1771362682027,0.0011,1998.9,1998.7,0.48037106]
[1771362683112,0.0011,1998.9,1998.3,7.37495711]
[1771362683420,6.09521717,1998.9,1998.3,0.48037106]
[1771362683922,1.25075045,1998.8,1998.3,0.48037106]
[1771362684347,2.07775045,1998.8,1998.3,0.48037106]
[1771362685127,2.07775045,1998.8,1998.3,1.25105662]
[1771362685436,2.07775045,1998.8,1998.4,0.48037106]
[1771362687146,2.07775045,1998.8,1998.5,0.48037106]
[1771362687147,0.827,1998.8,1998.5,0.48037106]
[1771362688746,2.07775642,1998.8,1998.3,1.73138633]
[1771362689314,2.07775642,1998.8,1998.3,1.25101527]
[1771362689545,2.07775642,1998.8,1998.3,1.73138633]
[1771362690049,2.07775642,1998.8,1998.4,0.48037106]
[1771362694550,2.07775642,1998.8,1998.3,0.48037106]
[1771362695416,2.07775642,1998.8,1998.2,0.48037106]
[1771362695417,2.52831065,1998.8,1998.2,0.48037106]
[1771362695851,2.52831065,1998.8,1998.5,0.001]
[1771362696355,2.52831065,1998.8,1998.4,0.001]
[1771362697753,6.09411717,1998.7,1998.4,0.001]
[1771362700226,1.25087561,1998.6,1998.4,0.001]
[1771362704040,1.25085388,1998.7,1998.4,0.001]
[1771362705432,0.47627366,1998.6,1998.2,0.001]
[1771362705850,0.841,1998.5,1998.2,0.001]
[1771362706661,6.9608366,1998.5,1998.2,0.001]
[1771362706859,6.9608366,1998.5,1997.8,0.47596048]
[1771362707038,1.2510008,1998.4,1997.8,0.47596048]
[1771362707758,1.72727446,1998.4,1997.8,0.47596048]
[1771362708457,0.47627366,1998.3,1997.8,0.001]
[1771362708662,0.842,1998.2,1997.9,0.47496048]
[1771362709047,2.09316966,1998.2,1997.9,0.47496048]
[1771362710533,0.842,1998.2,1997.9,0.47496048]
[1771362710753,0.842,1998.2,1998.0,0.001]
[1771362714464,2.09313855,1998.2,1998.0,0.001]
[1771362715036,0.0011,1998.7,1998.0,0.47494643]
[1771362715283,0.846,1998.6,1998.1,0.47394643]
[1771362715565,0.846,1998.6,1998.3,0.47394643]
[1771362717471,0.0011,1998.7,1998.3,0.47394643]
[1771362717472,0.0011,1998.7,1998.5,0.47394643]
[1771362720662,5.47749959,1999.1,1998.5,0.47394643]
[1771362720663,1.25046632,1999.3,1998.7,0.47394643]
[1771362720864,8.57646632,1999.3,1998.8,6.11750937]
[1771362721172,7.326,1999.3,1998.9,0.47394643]
[1771362722177,8.57643977,1999.3,1998.9,0.47394643]
[1771362722383,7.326,1999.3,1998.9,0.47394643]
[1771362722552,7.326,1999.3,1998.9,1.72462498]
[1771362722769,7.326,1999.3,1999.0,0.47394643]
[1771362722967,0.0011,1999.2,1999.0,0.47394643]
[1771362723480,7.326,1999.3,1999.0,0.47394643]
[1771362723481,6.47178601,1999.3,1999.1,0.47394643]
[1771362723678,0.0011,1999.3,1999.1,0.47394643]
[1771362725188,0.0011,1999.3,1999.2,0.47394643]
[1771362725387,1.72500536,2000.2,1999.5,0.47394643]
[1771362725577,0.847,2000.1,1999.5,0.47394643]
[1771362725956,1.32213035,2000.1,1999.5,0.47394643]
[1771362726476,1.25,2000.0,1999.5,0.47394643]
[1771362726972,1.25,2000.0,1999.6,0.47394643]
[1771362729151,5.84695558,2000.1,1999.6,0.47394643]
[1771362729152,0.847,2000.1,1999.7,0.47394643]
[1771362729550,1.24985274,2000.3,1999.7,0.47394643]
[1771362730565,2.09678889,2000.4,1999.9,0.47394643]
[1771362731076,2.09675236,2000.4,1999.9,0.47394643]
[1771362731960,0.47513035,2000.9,2000.0,5.64356294]
[1771362732170,0.848,2000.8,2000.3,0.47394643]
[1771362732783,1.24956265,2000.7,2000.3,0.47394643]
[1771362734078,1.7245681,2001.0,2000.3,0.47394643]
[1771362734251,4.99786685,2000.9,2000.3,0.47394643]
[1771362734865,1.24943775,2000.9,2000.3,0.47394643]
[1771362735774,6.32081328,2001.0,2000.4,0.48025579]
[1771362735775,2.0974178,2001.0,2000.4,0.48025579]
[1771362736271,0.0011,2000.5,2000.4,0.48025579]
[1771362740794,4.99713037,2001.2,2000.5,0.48025579]
[1771362740993,5.84313037,2001.2,2000.5,0.48025579]
[1771362743368,0.4838737,2001.1,2000.1,0.48025579]
[1771362743899,0.4827737,2000.9,2000.1,0.48025579]
[1771362744397,0.0011,2000.8,2000.1,0.48025579]
[1771362744692,0.4838737,2000.8,2000.1,0.48025579]
[1771362745490,1.73233635,2000.7,2000.1,0.48025579]
[1771362745690,0.4827737,2000.6,1999.9,0.48025579]
[1771362745872,0.4838737,2000.6,1999.9,0.48025579]
[1771362746390,0.0011,2000.5,1999.9,0.48025579]
[1771362747495,1.25078757,2000.5,1999.9,0.48025579]
[1771362747665,1.73356127,2000.5,1999.9,0.48025579]
[1771362747867,1.73356127,2000.5,1999.8,0.48025579]
[1771362748084,1.25078757,2000.5,1999.8,0.48025579]
[1771362751661,0.0011,2000.3,1999.9,0.48125579]
[1771362752365,0.0011,2000.2,1999.9,0.001]
[1771362752616,0.0011,2000.2,1999.8,0.001]
[1771362752617,0.4827737,2000.2,1999.8,0.0009]
[1771362753294,1.25091252,2000.3,1999.6,0.48125579]
[1771362753597,1.25091252,2000.3,1999.7,0.48025579]
[1771362754400,0.0011,2000.3,1999.7,0.48025579]
[1771362754563,0.0011,2000.3,1999.6,0.001]
[1771362754564,0.4838737,2000.3,1999.6,0.001]
[1771362754893,0.4838737,2000.3,1999.6,1.73149045]
[1771362755888,0.0011,2000.3,1999.7,0.48025579]
[1771362758398,0.0011,2000.3,1999.8,0.48025579]
[1771362758603,0.0011,2000.3,1999.9,0.48025579]
[1771362761018,0.0011,2000.3,2000.0,0.48025579]
[1771362764304,0.0011,2000.1,2000.0,0.48025579]
[1771362765620,0.0011,2000.1,1999.8,0.48174121]
[1771362767395,0.0011,2000.1,1999.8,1.73185805]
[1771362767995,0.0011,2000.1,1999.9,0.48174121]
[1771362769220,0.0011,2000.1,1999.9,1.73175491]
[1771362769826,0.0011,2000.1,1999.9,0.48174121]
[1771362770630,0.0011,2000.1,1999.7,0.48274121]
[1771362771208,0.45187014,2000.1,1999.7,0.001]
[1771362772326,0.0011,2000.1,1999.7,0.001]
[1771362773107,1.2510375,2000.1,1999.7,0.001]
[1771362774839,1.71078843,2000.1,1999.7,0.001]
[1771362779133,1.71078843,2000.1,1999.8,0.001]
[1771362779333,0.0011,1999.9,1999.8,0.001]
[1771362786044,0.0011,1999.9,1999.8,0.45745945]
[1771362786222,2.09681252,2000.3,1999.8,0.45745945]
[1771362786535,1.24981252,2000.3,1999.8,0.45745945]
[1771362787456,0.45975093,2000.2,1999.8,0.001]
[1771362789019,1.2499375,2000.1,1999.8,0.001]
[1771362792443,1.2499375,2000.1,1999.9,0.001]
[1771362793243,4.99965887,2000.2,1999.9,0.001]
[1771362793545,0.0011,2000.1,1999.9,0.45745945]
[1771362794917,0.0011,2000.1,2000.0,0.49875792]
[1771362797573,0.0011,2000.1,1999.9,0.001]
[1771362803016,1.2510375,2000.1,1999.9,0.001]
[1771362806591,1.2510375,2000.1,2000.0,0.001]
[1771362806779,1.2510375,2000.1,2000.0,5.988e-05]
[1771362809667,0.0011,2000.1,2000.0,5.988e-05]
[1771362813065,0.0011,2000.1,2000.0,0.4988178]
[1771362813387,0.867,2000.8,2000.0,0.4988178]
[1771362813588,0.867,2001.0,2000.5,0.49875792]
[1771362813790,2.11637554,2001.0,2000.6,0.49875792]
[1771362813987,1.24937554,2001.0,2000.6,0.49875792]
[1771362814163,2.11634539,2001.1,2000.6,0.49875792]
[1771362815993,2.11634539,2001.1,2000.6,1.74837533]
[1771362816186,2.11634539,2001.1,2000.6,0.49875792]
[1771362817694,0.47585169,2001.0,2000.3,1.21575792]
[1771362817904,0.901,2001.6,2001.0,0.49875792]
[1771362818113,0.47585169,2002.2,2001.5,5.63379895]
[1771362818306,1.72441584,2002.3,2001.7,5.63379895]
[1771362818464,0.47585169,2002.2,2001.5,6.13255687]
[1771362819101,1.24856415,2002.3,2001.6,0.49875792]
[1771362820027,0.007286,2002.4,2001.7,0.49875792]
[1771362821202,0.0011,2002.1,2001.7,0.49875792]
[1771362822483,0.0011,2002.1,2001.6,1.96599809]
[1771362822484,0.0011,2002.1,2001.2,0.49875792]
[1771362822683,0.0011,2002.1,2001.4,0.49875792]
[1771362825014,0.0011,2002.1,2001.6,0.49232306]
[1771362825388,0.0011,2002.1,2001.6,1.20932306]
[1771362825589,0.0011,2002.1,2001.7,0.49232306]
[1771362827621,0.0011,2002.1,2001.8,1.74119907]
[1771362828285,0.0011,2002.1,2001.8,1.24887601]
[1771362828486,0.0011,2002.1,2001.9,0.49232306]
[1771362829888,0.0011,2002.1,2001.9,1.74113657]
[1771362830300,0.0011,2002.1,2001.9,0.49232306]
[1771362830736,0.007286,2002.4,2001.9,1.74111835]
[1771362831019,0.007286,2002.4,2002.0,0.49232306]
[1771362831395,1.24794089,2003.3,2002.2,0.49232306]
[1771362831717,1.24794089,2003.3,2002.2,1.74090604]
[1771362831718,0.4587571,2003.2,2002.2,1.74090604]
[1771362832625,0.4587571,2003.2,2002.3,0.49232306]
[1771362833388,4.99176359,2003.6,2002.2,1.24858298]
[1771362833389,0.48307509,2003.7,2002.7,0.46687568]
[1771362833622,1.73082913,2003.6,2002.8,1.9652315]
[1771362833992,0.48307509,2003.5,2002.8,0.46687568]
[1771362834188,0.48307509,2003.5,2002.7,1.18387568]
[1771362834390,0.48307509,2003.5,2002.5,0.717]
[1771362834594,0.48307509,2003.5,2002.3,2.12043733]
[1771362834810,0.48307509,2003.5,2002.3,0.87187568]
[1771362835004,0.48307509,2003.5,2002.3,2.12043912]
[1771362835204,0.0011,2002.4,2002.3,2.12043912]
[1771362835400,0.48307509,2003.2,2002.3,2.12043912]
[1771362836402,1.73112694,2003.2,2002.4,0.46687568]
[1771362836608,1.24805185,2003.2,2002.4,0.46687568]
[1771362836816,0.02099949,2003.1,2002.4,0.46687568]
[1771362838529,0.02099949,2003.1,2002.6,0.46687568]
[1771362840908,1.73066705,2003.9,2002.8,0.46687568]
[1771362841121,1.73066705,2003.9,2003.0,0.46687568]
[1771362841301,1.24759196,2003.9,2003.0,0.46687568]
[1771362841712,1.24748923,2004.1,2003.1,0.46687568]
[1771362841943,0.48307509,2004.0,2003.0,0.717]
[1771362842300,0.48307509,2004.0,2002.8,0.46687568]
[1771362842535,0.48307509,2004.0,2002.9,0.46687568]
[1771362842734,1.73062544,2004.0,2003.1,0.46687568]
[1771362842950,1.24755035,2004.0,2003.1,0.46687568]
[1771362843235,1.73049566,2004.2,2003.1,0.46687568]
[1771362843434,1.24742057,2004.2,2003.1,0.46687568]
[1771362843736,1.24742057,2004.2,2003.3,0.46687568]
[1771362843934,1.24742057,2004.2,2003.5,0.46687568]
[1771362844433,0.48307509,2004.1,2003.4,1.18287568]
[1771362845029,1.24750499,2004.0,2003.4,2.4306963]
[1771362845433,1.73058008,2004.0,2003.3,1.96391762]
[1771362845602,0.48307509,2004.2,2003.4,0.46687568]
[1771362845802,1.73043792,2004.3,2003.4,0.46687568]
[1771362846151,0.48307509,2004.2,2003.1,2.43090829]
[1771362847034,0.48307509,2004.0,2003.1,2.43090829]
[1771362847229,0.0011,2003.8,2003.1,2.43090829]
[1771362848214,0.0011,2003.8,2003.1,1.71490829]
[1771362849025,1.73076686,2003.7,2003.0,0.716]
[1771362849931,0.48307509,2003.6,2002.9,1.71501772]
[1771362850238,0.48307509,2003.6,2002.7,2.43114727]
[1771362850624,0.48307509,2003.6,2002.7,1.18287568]
[1771362850808,0.48307509,2003.6,2002.6,0.716]
[1771362851133,0.48307509,2003.4,2002.6,0.716]
[1771362851638,0.48307509,2003.4,2002.4,1.9634483]
[1771362852043,0.48307509,2003.4,2002.5,0.46687568]
[1771362853334,0.48307509,2003.2,2002.3,1.71539638]
[1771362853844,0.48307509,2003.2,2002.3,1.7154312]
[1771362854847,0.48307509,2003.2,2002.3,0.48004574]
[1771362855541,0.46700853,2003.0,2002.1,1.72972663]
[1771362855742,0.46700853,2003.0,2002.1,2.44472663]
[1771362855946,0.46700853,2003.0,2002.2,0.48004574]
[1771362856442,1.71502897,2003.2,2002.2,0.48004574]
[1771362856630,1.24792699,2003.4,2002.4,0.48004574]
[1771362857627,1.71479695,2003.6,2002.6,0.48004574]
[1771362857822,1.71479695,2003.6,2002.7,1.19404574]
[1771362858446,1.71479695,2003.6,2002.7,0.714]
[1771362858646,1.71479695,2003.6,2002.8,0.48004574]
[1771362858846,1.71476392,2003.6,2002.8,0.48004574]
[1771362859023,1.24775539,2003.6,2002.8,0.48004574]
[1771362859847,1.24775539,2003.6,2002.9,1.24819012]
[1771362860349,1.24775539,2003.6,2002.7,0.714]
[1771362860350,0.46700853,2003.5,2002.7,1.96225485]
[1771362860742,0.46700853,2003.5,2002.7,0.714]
[1771362861154,0.46700853,2003.5,2002.5,1.24838874]
[1771362861648,0.46700853,2003.5,2002.4,2.44150612]
[1771362862029,0.46700853,2003.3,2002.9,0.001]
[1771362863847,1.2478786,2003.4,2002.9,0.001]
[1771362864661,1.71486685,2003.5,2002.9,0.001]
[1771362865854,0.46700853,2003.4,2002.9,0.001]
[1771362866063,1.71494942,2003.3,2002.9,0.001]
[1771362873666,0.46700853,2003.2,2002.9,0.001]
[1771362874341,1.71507402,2003.1,2002.9,0.001]
[1771362875162,1.71507402,2003.1,2002.4,0.48004574]
[1771362875463,1.24806549,2003.1,2002.9,0.001]
[1771362876444,1.24805052,2003.2,2002.9,0.001]
[1771362876764,2.57405905,2003.2,2002.9,0.001]
[1771362881867,4.99299728,2003.3,2003.0,0.48004574]
[1771362881868,0.0011,2003.3,2003.0,0.48004574]
[1771362882061,1.24773888,2003.7,2003.1,0.48004574]
[1771362882246,1.24883888,2003.7,2003.1,0.48004574]
[1771362882668,0.0011,2003.6,2003.1,0.48004574]
[1771362884464,0.0011,2003.6,2003.2,1.70085267]
[1771362885964,0.0011,2003.6,2003.2,0.45284948]
[1771362887372,5.48948162,2003.9,2003.2,0.45284948]
[1771362887572,0.0011,2003.8,2003.2,0.45284948]
[1771362888271,0.0011,2003.8,2003.2,1.70084488]
[1771362889046,5.48948162,2003.9,2003.2,1.70084488]
[1771362889247,0.0011,2003.8,2003.2,1.70084488]
[1771362889851,0.0011,2003.8,2003.2,0.45284948]
[1771362890154,0.0011,2003.4,2003.2,0.45284948]
[1771362890360,0.0011,2003.4,2003.1,1.24901664]
[1771362890659,0.0011,2003.4,2003.2,0.45284948]
[1771362892078,0.0011,2003.4,2003.2,1.70084929]
[1771362892379,0.0011,2003.4,2003.2,0.45284948]
[1771362892569,0.0011,2003.4,2003.2,1.70084542]
[1771362895872,0.0011,2003.4,2003.3,0.47958037]
[1771362896269,0.0011,2003.4,2003.1,0.48058037]
[1771362897076,0.0022,2003.4,2003.1,0.48058037]
[1771362897251,0.0011,2003.4,2003.1,0.001]
[1771362900181,0.0011,2003.4,2003.1,0.48058037]
[1771362900475,0.0011,2003.4,2003.1,0.001]
[1771362900856,0.45771098,2003.3,2003.1,0.001]
[1771362901056,0.45661098,2003.3,2002.9,0.001]
[1771362902104,0.45661098,2003.3,2002.9,1.24918387]
[1771362902389,0.0011,2003.4,2003.1,1.24806549]
[1771362902684,0.45661098,2003.8,2003.1,1.24806549]
[1771362902883,0.45661098,2003.8,2003.0,11.08964572]
[1771362902884,0.45661098,2003.6,2003.0,0.711]
[1771362903673,0.45661098,2003.6,2003.1,0.001]
[1771362903957,0.0011,2003.2,2003.1,0.001]
[1771362904371,0.0011,2003.2,2003.1,1.24906549]
[1771362906682,0.45661098,2003.9,2003.2,0.47958037]
[1771362907485,0.45661098,2004.3,2003.2,0.47958037]
[1771362908989,0.45661098,2004.2,2003.4,0.47958037]
[1771362909192,0.45661098,2004.2,2003.5,1.19258037]
[1771362910887,1.24744274,2004.1,2003.5,0.47958037]
[1771362911105,0.45661098,2004.0,2003.3,0.47958037]
[1771362911819,0.45661098,2004.0,2003.3,1.19258037]
[1771362913412,1.24756724,2003.9,2003.3,2.4404758]
[1771362913785,1.70417822,2003.9,2003.2,1.95997254]
[1771362914018,0.45661098,2003.8,2003.1,2.44059744]
[1771362914219,0.45661098,2003.8,2003.1,1.24901707]
[1771362914723,0.45661098,2003.8,2003.1,1.73756896]
[1771362915280,0.45661098,2003.8,2003.1,0.001]
[1771362915516,0.4988908,2003.6,2003.1,0.001]
[1771362917085,1.74657168,2003.8,2003.1,0.001]
[1771362917517,0.4988908,2003.8,2003.2,0.48855189]
[1771362917686,1.74652945,2003.8,2003.2,0.48855189]
[1771362918316,1.74652945,2003.8,2003.3,0.001]
[1771362918496,0.0011,2003.4,2003.3,0.001]
[1771362918692,0.4988908,2003.7,2003.3,0.001]
[1771362919197,0.0011,2003.6,2003.3,0.001]
[1771362919502,0.4999908,2003.6,2003.3,0.001]
[1771362919816,0.0011,2003.6,2003.3,0.001]
[1771362920215,0.4999908,2003.6,2003.1,0.001]
[1771362921289,0.0011,2003.6,2003.1,0.001]
[1771362921527,0.0011,2003.6,2003.1,1.73761714]
[1771362922437,0.0011,2003.6,2003.2,0.48855189]
[1771362923639,0.0011,2003.6,2003.2,1.73650863]
[1771362923988,0.0011,2003.6,2003.2,1.24795674]
[1771362925607,0.0011,2003.6,2003.1,1.96104238]
[1771362925813,0.4999908,2003.6,2003.1,0.001]
[1771362927535,0.4988908,2003.5,2002.9,0.001]
[1771362927748,0.4988908,2003.3,2002.9,0.001]
[1771362928810,1.24889567,2003.6,2002.9,0.48955189]
[1771362929135,0.4988908,2003.5,2002.9,0.001]
[1771362929713,0.4988908,2003.3,2002.9,0.001]
[1771362931937,1.24800319,2003.2,2003.1,0.001]
[1771362932143,1.24800319,2003.2,2002.9,0.001]